fUST/lending_fUST_20260511
["ID","MTS","AMOUNT","RATE_DAILY","PERIOD"]
[422003556,1778442645000,-5301.96,0.00012054,2]
[422003549,1778442645000,-500.0,0.00012054,2]
[422003557,1778442645000,-5213.45,0.00012054,2]
[422003567,1778442645000,-2310.42,0.00012054,2]
[422003558,1778442645000,-2745.84,0.00012054,2]
[422003576,1778442645000,-154.32166406,0.00012247,5]
[422003574,1778442645000,-349.05640779,0.00012242,2]
[422003575,1778442645000,-160.0,0.00012247,3]
[422003573,1778442645000,-1816.5007502,0.00012205,2]
[422003572,1778442645000,-806.74186604,0.000122,2]
[422003565,1778442645000,-1668.08,0.00012054,2]
[422003562,1778442645000,-4139.42,0.00012054,2]
[422003570,1778442645000,-33739.97678023,0.000121,5]
[422003568,1778442645000,-2096.55486925,0.00012081,2]
[422003566,1778442645000,-1896.35,0.00012054,2]
[422003571,1778442645000,-430.5031215,0.00012138,2]
[422003563,1778442645000,-500.0,0.00012054,2]
[422003564,1778442645000,-601.46,0.00012054,2]
[422003559,1778442645000,-500.0,0.00012054,2]
[422003560,1778442645000,-1122.63,0.00012054,2]
[422003561,1778442645000,-1894.03,0.00012054,2]
[422003569,1778442645000,-456.3760811,0.00012083,2]
[422003592,1778442647000,-478.75725327,0.00012266,2]
[422003593,1778442647000,-800.0,0.00012286,2]
[422003586,1778442647000,-443.0,0.00010413,2]
[422003588,1778442647000,-5718.48,0.0001178,2]
[422003587,1778442647000,-5718.48,0.00011506,2]
[422003590,1778442647000,-5.67833594,0.00012247,5]
[422003591,1778442647000,-160.0,0.00012247,5]
[422003594,1778442647000,-800.0,0.00012292,2]
[422003595,1778442647000,-1045.27560556,0.00012304,2]
[422003589,1778442647000,-5718.48,0.00012054,2]
[422003596,1778442711000,289.0,0.00019178,120]
[422003598,1778442870000,2456.17022805,0.00019178,120]
[422003600,1778443586000,14000.0,0.00017,120]
[422003633,1778443832000,-39.57489636,8.577e-05,2]
[422003629,1778443832000,-300.0,8.577e-05,2]
[422003631,1778443832000,-300.0,8.577e-05,2]
[422003628,1778443832000,-300.0,8.577e-05,2]
[422003625,1778443832000,-1680.0,8.193e-05,2]
[422003626,1778443832000,-420.0,8.488e-05,2]
[422003630,1778443832000,-300.0,8.577e-05,2]
[422003619,1778443832000,-5000.0,7.375e-05,2]
[422003623,1778443832000,-300.0,7.717e-05,2]
[422003624,1778443832000,-354.58205235,7.72e-05,2]
[422003622,1778443832000,-300.0,7.716e-05,2]
[422003621,1778443832000,-1088.78693591,7.6e-05,2]
[422003620,1778443832000,-1200.0,7.448e-05,2]
[422003618,1778443832000,-3905.47269706,7.301e-05,2]
[422003632,1778443832000,-300.0,8.577e-05,2]
[422003627,1778443832000,-223.73131832,8.495e-05,2]
[422003635,1778443832000,-300.0,8.577e-05,2]
[422003641,1778443832000,-300.0,8.577e-05,2]
[422003636,1778443832000,-300.0,8.577e-05,2]
[422003652,1778443832000,-286.26746923,9.933e-05,2]
[422003650,1778443832000,-418.40682177,9.72e-05,2]
[422003646,1778443832000,-587.0,9.336e-05,2]
[422003649,1778443832000,-250.0,9.647e-05,2]
[422003648,1778443832000,-720.0,9.622e-05,2]
[422003647,1778443832000,-6859.03550289,9.425e-05,2]
[422003645,1778443832000,-472.0,9.012e-05,2]
[422003634,1778443832000,-260.42510364,8.577e-05,2]
[422003643,1778443832000,-300.0,8.577e-05,2]
[422003642,1778443832000,-300.0,8.577e-05,2]
[422003639,1778443832000,-300.0,8.577e-05,2]
[422003637,1778443832000,-300.0,8.577e-05,2]
[422003651,1778443832000,-18930.0,9.932e-05,2]
[422003640,1778443832000,-300.0,8.577e-05,2]
[422003638,1778443832000,-300.0,8.577e-05,2]
[422003644,1778443832000,-600.0,8.748e-05,2]
[422003653,1778443833000,-170.39588605,9.933e-05,2]
[422003654,1778443833000,-66112.52148343,9.934e-05,2]
[422003655,1778443833000,-45306.91411301,9.934e-05,2]
[422003674,1778443837000,-1340.54118155,9.934e-05,2]
[422003675,1778443838000,-5000.0,9.835e-05,2]
[422003677,1778443838000,-26133.16630541,9.934e-05,2]
[422003676,1778443838000,-49.15549784,9.934e-05,2]
[422003680,1778443840000,-2352.67373162,9.934e-05,2]
[422003683,1778443840000,-420.80213268,0.0001,2]
[422003682,1778443840000,-1601.22177545,0.0001,2]
[422003685,1778443840000,-146.50558203,0.0001,2]
[422003684,1778443840000,-180.0,0.0001,2]
[422003681,1778443840000,-163.91805231,9.934e-05,2]
[422003721,1778443843000,-151.0,0.0001,2]
[422003722,1778443843000,-77.36045348,0.0001,2]
[422003714,1778443843000,-137.69108203,0.0001,2]
[422003716,1778443843000,-151.0,0.0001,2]
[422003715,1778443843000,-13.30891797,0.0001,2]
[422003719,1778443843000,-151.0,0.0001,2]
[422003718,1778443843000,-151.0,0.0001,2]
[422003720,1778443843000,-151.0,0.0001,2]
[422003713,1778443843000,-4.49441797,0.0001,2]
[422003717,1778443843000,-151.0,0.0001,2]
[422003731,1778443846000,-151.0,0.0001,2]
[422003730,1778443846000,-151.0,0.0001,2]
[422003732,1778443846000,-98.75565615,0.0001,2]
[422003729,1778443846000,-151.0,0.0001,2]
[422003727,1778443846000,-73.63954652,0.0001,2]
[422003728,1778443846000,-151.0,0.0001,2]
[422003736,1778444798000,-279.61218333,3.99e-05,2]
[422003791,1778445031000,-1238.53435585,3.794e-05,2]
[422003784,1778445031000,-3761.46564415,3.794e-05,2]
[422003854,1778445032000,-500.0,9.629e-05,2]
[422003858,1778445032000,-500.0,9.629e-05,2]
[422003852,1778445032000,-500.0,9.629e-05,2]
[422003856,1778445032000,-500.0,9.629e-05,2]
[422003849,1778445032000,-170.83941648,9.629e-05,2]
[422003860,1778445032000,-500.0,9.629e-05,2]
[422003847,1778445032000,-500.0,9.629e-05,2]
[422003844,1778445032000,-420.0,9.17e-05,2]
[422003845,1778445032000,-81346.9832884,9.53e-05,2]
[422003842,1778445032000,-9283.28983958,9.123e-05,2]
[422003862,1778445032000,-500.0,9.629e-05,2]
[422003866,1778445032000,-500.0,9.629e-05,2]
[422003868,1778445032000,-189.9249356,9.629e-05,2]
[422003877,1778445032000,-500.0,9.629e-05,2]
[422003881,1778445032000,-500.0,9.629e-05,2]
[422003878,1778445032000,-500.0,9.629e-05,2]
[422003883,1778445032000,-500.0,9.629e-05,2]
[422003880,1778445032000,-500.0,9.629e-05,2]
[422003882,1778445032000,-500.0,9.629e-05,2]
[422003885,1778445032000,-500.0,9.629e-05,2]
[422003864,1778445032000,-500.0,9.629e-05,2]
[422003870,1778445032000,-500.0,9.629e-05,2]
[422003836,1778445032000,-300.0,8.337e-05,2]
[422003828,1778445032000,-300.0,8.337e-05,2]
[422003793,1778445032000,-260.97405191,3.832e-05,2]
[422003795,1778445032000,-3432.51844752,3.871e-05,2]
[422003807,1778445032000,-300.0,8.337e-05,2]
[422003814,1778445032000,-300.0,8.337e-05,2]
[422003809,1778445032000,-300.0,8.337e-05,2]
[422003799,1778445032000,-161.8187017,4.281e-05,2]
[422003803,1778445032000,-483.13159771,7.97e-05,2]
[422003797,1778445032000,-355.24382184,3.97e-05,2]
[422003811,1778445032000,-300.0,8.337e-05,2]
[422003838,1778445032000,-716.71016042,9.123e-05,2]
[422003805,1778445032000,-300.0,8.336e-05,2]
[422003816,1778445032000,-300.0,8.337e-05,2]
[422003830,1778445032000,-300.0,8.337e-05,2]
[422003832,1778445032000,-300.0,8.337e-05,2]
[422003820,1778445032000,-300.0,8.337e-05,2]
[422003818,1778445032000,-300.0,8.337e-05,2]
[422003824,1778445032000,-300.0,8.337e-05,2]
[422003834,1778445032000,-300.0,8.337e-05,2]
[422003822,1778445032000,-300.0,8.337e-05,2]
[422003826,1778445032000,-300.0,8.337e-05,2]
[422003801,1778445032000,-419.18770977,5.97e-05,2]
[422003873,1778445032000,-500.0,9.629e-05,2]
[422003886,1778445032000,-500.0,9.629e-05,2]
[422003871,1778445032000,-500.0,9.629e-05,2]
[422003908,1778445032000,-301.14322794,9.629e-05,2]
[422003911,1778445032000,-500.0,9.629e-05,2]
[422003912,1778445032000,-500.0,9.629e-05,2]
[422003915,1778445032000,-500.0,9.629e-05,2]
[422003914,1778445032000,-500.0,9.629e-05,2]
[422003921,1778445032000,-500.0,9.629e-05,2]
[422003917,1778445032000,-500.0,9.629e-05,2]
[422003923,1778445032000,-500.0,9.629e-05,2]
[422003913,1778445032000,-500.0,9.629e-05,2]
[422003922,1778445032000,-500.0,9.629e-05,2]
[422003920,1778445032000,-500.0,9.629e-05,2]
[422003916,1778445032000,-500.0,9.629e-05,2]
[422003918,1778445032000,-500.0,9.629e-05,2]
[422003919,1778445032000,-500.0,9.629e-05,2]
[422003925,1778445032000,-580.1143228,9.629e-05,2]
[422003926,1778445032000,-500.0,9.629e-05,2]
[422003924,1778445032000,-500.0,9.629e-05,2]
[422003929,1778445032000,-63840.93668674,9.63e-05,2]
[422003884,1778445032000,-500.0,9.629e-05,2]
[422003928,1778445032000,-163.91805231,9.629e-05,2]
[422003930,1778445032000,-1036.69568593,9.63e-05,2]
[422003906,1778445032000,-500.0,9.629e-05,2]
[422003902,1778445032000,-500.0,9.629e-05,2]
[422003927,1778445032000,-500.0,9.629e-05,2]
[422003905,1778445032000,-500.0,9.629e-05,2]
[422003875,1778445032000,-500.0,9.629e-05,2]
[422003888,1778445032000,-500.0,9.629e-05,2]
[422003889,1778445032000,-500.0,9.629e-05,2]
[422003893,1778445032000,-255.82978864,9.629e-05,2]
[422003891,1778445032000,-500.0,9.629e-05,2]
[422003887,1778445032000,-500.0,9.629e-05,2]
[422003903,1778445032000,-500.0,9.629e-05,2]
[422003892,1778445032000,-500.0,9.629e-05,2]
[422003894,1778445032000,-500.0,9.629e-05,2]
[422003895,1778445032000,-500.0,9.629e-05,2]
[422003890,1778445032000,-500.0,9.629e-05,2]
[422003897,1778445032000,-500.0,9.629e-05,2]
[422003899,1778445032000,-500.0,9.629e-05,2]
[422003910,1778445032000,-500.0,9.629e-05,2]
[422003909,1778445032000,-500.0,9.629e-05,2]
[422003898,1778445032000,-500.0,9.629e-05,2]
[422003900,1778445032000,-500.0,9.629e-05,2]
[422003901,1778445032000,-500.0,9.629e-05,2]
[422003904,1778445032000,-500.0,9.629e-05,2]
[422003896,1778445032000,-500.0,9.629e-05,2]
[422003907,1778445032000,-500.0,9.629e-05,2]
[422003973,1778445038000,-181.86,0.0001,2]
[422003971,1778445038000,-163.91805231,9.97e-05,2]
[422003979,1778445038000,-48.21153145,0.0001,2]
[422003976,1778445038000,-85.39915804,0.0001,2]
[422003977,1778445038000,-65.60084196,0.0001,2]
[422003975,1778445038000,-151.0,0.0001,2]
[422003981,1778445038000,-203.24434385,0.0001,2]
[422003978,1778445038000,-151.0,0.0001,2]
[422003986,1778445038000,-160.0,0.00010094,2]
[422003982,1778445038000,-600.0,0.00010025,2]
[422003985,1778445038000,-160.0,0.00010094,2]
[422003993,1778445038000,-4087.12668796,0.00010879,2]
[422003988,1778445038000,-160.0,0.00010135,2]
[422003991,1778445038000,-185.0,0.00010631,2]
[422003984,1778445038000,-161.61126227,0.00010094,2]
[422003987,1778445038000,-160.0,0.00010135,2]
[422003994,1778445038000,-155.0,0.00010957,2]
[422003974,1778445038000,-151.0,0.0001,2]
[422003980,1778445038000,-102.78846855,0.0001,2]
[422003972,1778445038000,-547.07548564,9.97e-05,2]
[422003958,1778445038000,-913.49178778,9.729e-05,2]
[422003964,1778445038000,-913.49178778,9.729e-05,2]
[422003989,1778445038000,-152.6926396,0.00010151,2]
[422003950,1778445038000,-836.73170697,9.528e-05,2]
[422003952,1778445038000,-17749.29841706,9.528e-05,2]
[422003953,1778445038000,-10242.31919729,9.63e-05,2]
[422003951,1778445038000,-4991.96987597,9.528e-05,2]
[422003955,1778445038000,-169.0,9.703e-05,2]
[422003956,1778445038000,-438.77275991,9.729e-05,2]
[422003954,1778445038000,-409.379,9.635e-05,2]
[422003957,1778445038000,-913.49178778,9.729e-05,2]
[422003969,1778445038000,-913.49178778,9.729e-05,2]
[422003959,1778445038000,-913.49178778,9.729e-05,2]
[422003961,1778445038000,-708.3070048,9.729e-05,2]
[422003966,1778445038000,-913.49178778,9.729e-05,2]
[422003968,1778445038000,-913.49178778,9.729e-05,2]
[422003965,1778445038000,-913.49178778,9.729e-05,2]
[422003960,1778445038000,-205.18478298,9.729e-05,2]
[422003962,1778445038000,-913.49178778,9.729e-05,2]
[422003963,1778445038000,-913.49178778,9.729e-05,2]
[422003967,1778445038000,-913.49178778,9.729e-05,2]
[422003970,1778445038000,-913.49178778,9.729e-05,2]
[422003983,1778445038000,-587.0,0.00010087,2]
[422004028,1778445038000,-695.8,0.00010958,2]
[422003992,1778445038000,-7258.73699781,0.00010879,2]
[422004017,1778445038000,-1511.25,0.00010958,2]
[422004016,1778445038000,-563.59,0.00010958,2]
[422004020,1778445038000,-604.16,0.00010958,2]
[422004022,1778445038000,-699.76,0.00010958,2]
[422004025,1778445038000,-500.0,0.00010958,2]
[422004023,1778445038000,-550.89,0.00010958,2]
[422004030,1778445038000,-887.43,0.00010958,2]
[422004024,1778445038000,-500.0,0.00010958,2]
[422004026,1778445038000,-1466.81,0.00010958,2]
[422004021,1778445038000,-500.0,0.00010958,2]
[422004031,1778445038000,-500.0,0.00010958,2]
[422004029,1778445038000,-500.0,0.00010958,2]
[422004027,1778445038000,-500.0,0.00010958,2]
[422004034,1778445038000,-500.0,0.00010958,2]
[422004033,1778445038000,-500.0,0.00010958,2]
[422004035,1778445038000,-824.46,0.00010958,2]
[422004036,1778445038000,-1531.85,0.00010958,2]
[422004037,1778445038000,-500.0,0.00010958,2]
[422003990,1778445038000,-151.0,0.00010151,2]
[422004009,1778445038000,-500.0,0.00010958,2]
[422004013,1778445038000,-693.12,0.00010958,2]
[422004032,1778445038000,-542.47,0.00010958,2]
[422004012,1778445038000,-500.0,0.00010958,2]
[422003995,1778445038000,-2185.42,0.00010958,2]
[422004014,1778445038000,-500.0,0.00010958,2]
[422003998,1778445038000,-500.0,0.00010958,2]
[422003996,1778445038000,-500.0,0.00010958,2]
[422003999,1778445038000,-540.48,0.00010958,2]
[422004002,1778445038000,-500.0,0.00010958,2]
[422004000,1778445038000,-798.65,0.00010958,2]
[422004001,1778445038000,-554.48663933,0.00010958,2]
[422004006,1778445038000,-249.86398427,0.00010958,2]
[422003997,1778445038000,-500.0,0.00010958,2]
[422004004,1778445038000,-500.0,0.00010958,2]
[422004003,1778445038000,-500.0,0.00010958,2]
[422004008,1778445038000,-682.81,0.00010958,2]
[422004018,1778445038000,-500.0,0.00010958,2]
[422004019,1778445038000,-500.0,0.00010958,2]
[422004007,1778445038000,-512.4,0.00010958,2]
[422004011,1778445038000,-724.2,0.00010958,2]
[422004015,1778445038000,-206.31184435,0.00010958,2]
[422004005,1778445038000,-152.54118687,0.00010958,2]
[422004010,1778445038000,-500.0,0.00010958,2]
[422004076,1778445039000,-4774.8,0.00010958,2]
[422004080,1778445039000,-1162.01,0.00010958,2]
[422004081,1778445039000,-500.0,0.00010958,2]
[422004077,1778445039000,-941.83,0.00010958,2]
[422004072,1778445039000,-3042.14,0.00010958,2]
[422004075,1778445039000,-3917.56,0.00010958,2]
[422004084,1778445039000,-500.0,0.00010958,2]
[422004074,1778445039000,-500.0,0.00010958,2]
[422004082,1778445039000,-1935.64,0.00010958,2]
[422004073,1778445039000,-500.0,0.00010958,2]
[422004078,1778445039000,-807.59,0.00010958,2]
[422004065,1778445039000,-672.67,0.00010958,2]
[422004083,1778445039000,-1246.37,0.00010958,2]
[422004079,1778445039000,-948.18,0.00010958,2]
[422004091,1778445039000,-1320.56,0.00010958,2]
[422004086,1778445039000,-1499.44,0.00010958,2]
[422004097,1778445039000,-4527.13,0.00010958,2]
[422004087,1778445039000,-2173.79,0.00010958,2]
[422004085,1778445039000,-4226.59,0.00010958,2]
[422004088,1778445039000,-888.75,0.00010958,2]
[422004089,1778445039000,-500.0,0.00010958,2]
[422004095,1778445039000,-500.0,0.00010958,2]
[422004093,1778445039000,-4127.31,0.00010958,2]
[422004090,1778445039000,-500.0,0.00010958,2]
[422004094,1778445039000,-1829.08,0.00010958,2]
[422004092,1778445039000,-3277.04,0.00010958,2]
[422004099,1778445039000,-500.0,0.00010958,2]
[422004110,1778445039000,-430.8943522,0.00011013,2]
[422004064,1778445039000,-1328.58,0.00010958,2]
[422004096,1778445039000,-1501.28,0.00010958,2]
[422004069,1778445039000,-1040.15,0.00010958,2]
[422004050,1778445039000,-500.0,0.00010958,2]
[422004067,1778445039000,-500.0,0.00010958,2]
[422004109,1778445039000,-325.7824685,0.00011013,2]
[422004044,1778445039000,-596.46,0.00010958,2]
[422004045,1778445039000,-500.0,0.00010958,2]
[422004038,1778445039000,-500.0,0.00010958,2]
[422004042,1778445039000,-1063.36,0.00010958,2]
[422004039,1778445039000,-500.0,0.00010958,2]
[422004040,1778445039000,-941.28,0.00010958,2]
[422004043,1778445039000,-1211.73,0.00010958,2]
[422004041,1778445039000,-500.0,0.00010958,2]
[422004047,1778445039000,-1386.81,0.00010958,2]
[422004048,1778445039000,-500.0,0.00010958,2]
[422004049,1778445039000,-500.0,0.00010958,2]
[422004054,1778445039000,-1457.85,0.00010958,2]
[422004046,1778445039000,-1576.49,0.00010958,2]
[422004055,1778445039000,-1029.22,0.00010958,2]
[422004053,1778445039000,-405.76787038,0.00010958,2]
[422004056,1778445039000,-442.5529058,0.00010958,2]
[422004052,1778445039000,-500.0,0.00010958,2]
[422004051,1778445039000,-500.0,0.00010958,2]
[422004058,1778445039000,-500.0,0.00010958,2]
[422004057,1778445039000,-1323.5,0.00010958,2]
[422004059,1778445039000,-500.0,0.00010958,2]
[422004060,1778445039000,-2936.56,0.00010958,2]
[422004061,1778445039000,-1419.9,0.00010958,2]
[422004063,1778445039000,-500.0,0.00010958,2]
[422004070,1778445039000,-500.0,0.00010958,2]
[422004071,1778445039000,-22178.68,0.00010958,2]
[422004068,1778445039000,-500.0,0.00010958,2]
[422004062,1778445039000,-3984.66,0.00010958,2]
[422004066,1778445039000,-3184.33,0.00010958,2]
[422004107,1778445039000,-802.13,0.00010959,2]
[422004103,1778445039000,-500.0,0.00010958,2]
[422004102,1778445039000,-500.0,0.00010958,2]
[422004139,1778445039000,-500.0,0.00011232,2]
[422004149,1778445039000,-500.0,0.00011232,2]
[422004150,1778445039000,-542.47,0.00011232,2]
[422004151,1778445039000,-500.0,0.00011232,2]
[422004141,1778445039000,-550.89,0.00011232,2]
[422004138,1778445039000,-604.16,0.00011232,2]
[422004140,1778445039000,-699.76,0.00011232,2]
[422004143,1778445039000,-500.0,0.00011232,2]
[422004142,1778445039000,-500.0,0.00011232,2]
[422004147,1778445039000,-500.0,0.00011232,2]
[422004145,1778445039000,-500.0,0.00011232,2]
[422004144,1778445039000,-1466.81,0.00011232,2]
[422004148,1778445039000,-887.43,0.00011232,2]
[422004146,1778445039000,-695.8,0.00011232,2]
[422004153,1778445039000,-824.46,0.00011232,2]
[422004159,1778445039000,-500.0,0.00011232,2]
[422004160,1778445039000,-1063.36,0.00011232,2]
[422004161,1778445039000,-1211.73,0.00011232,2]
[422004162,1778445039000,-596.46,0.00011232,2]
[422004164,1778445039000,-1576.49,0.00011232,2]
[422004163,1778445039000,-500.0,0.00011232,2]
[422004152,1778445039000,-500.0,0.00011232,2]
[422004157,1778445039000,-500.0,0.00011232,2]
[422004154,1778445039000,-1531.85,0.00011232,2]
[422004155,1778445039000,-500.0,0.00011232,2]
[422004156,1778445039000,-500.0,0.00011232,2]
[422004158,1778445039000,-941.28,0.00011232,2]
[422004165,1778445039000,-1386.81,0.00011232,2]
[422004106,1778445039000,-802.13,0.00010959,2]
[422004137,1778445039000,-500.0,0.00011232,2]
[422004135,1778445039000,-1511.25,0.00011232,2]
[422004167,1778445039000,-500.0,0.00011232,2]
[422004129,1778445039000,-500.0,0.00011232,2]
[422004098,1778445039000,-2237.71,0.00010958,2]
[422004105,1778445039000,-802.13,0.00010959,2]
[422004100,1778445039000,-4068.11,0.00010958,2]
[422004101,1778445039000,-500.0,0.00010958,2]
[422004166,1778445039000,-500.0,0.00011232,2]
[422004108,1778445039000,-802.15,0.00010959,2]
[422004104,1778445039000,-802.13,0.00010959,2]
[422004111,1778445039000,-325.805033,0.00011013,2]
[422004133,1778445039000,-500.0,0.00011232,2]
[422004113,1778445039000,-325.4432534,0.00011013,2]
[422004115,1778445039000,-562.0,0.00011095,2]
[422004118,1778445039000,-500.0,0.00011232,2]
[422004122,1778445039000,-798.65,0.00011232,2]
[422004116,1778445039000,-445.202766,0.00011198,2]
[422004123,1778445039000,-500.0,0.00011232,2]
[422004114,1778445039000,-720.0,0.00011027,2]
[422004119,1778445039000,-500.0,0.00011232,2]
[422004136,1778445039000,-500.0,0.00011232,2]
[422004112,1778445039000,-248.8081843,0.00011013,2]
[422004125,1778445039000,-500.0,0.00011232,2]
[422004128,1778445039000,-500.0,0.00011232,2]
[422004134,1778445039000,-563.59,0.00011232,2]
[422004131,1778445039000,-500.0,0.00011232,2]
[422004130,1778445039000,-724.2,0.00011232,2]
[422004132,1778445039000,-693.12,0.00011232,2]
[422004126,1778445039000,-512.4,0.00011232,2]
[422004121,1778445039000,-540.48,0.00011232,2]
[422004117,1778445039000,-2185.42,0.00011232,2]
[422004120,1778445039000,-500.0,0.00011232,2]
[422004124,1778445039000,-500.0,0.00011232,2]
[422004127,1778445039000,-682.81,0.00011232,2]
[422004207,1778445040000,-1320.56,0.00011232,2]
[422004213,1778445040000,-4527.13,0.00011232,2]
[422004216,1778445040000,-4068.11,0.00011232,2]
[422004208,1778445040000,-3277.04,0.00011232,2]
[422004218,1778445040000,-500.0,0.00011232,2]
[422004196,1778445040000,-1162.01,0.00011232,2]
[422004206,1778445040000,-500.0,0.00011232,2]
[422004200,1778445040000,-500.0,0.00011232,2]
[422004197,1778445040000,-500.0,0.00011232,2]
[422004199,1778445040000,-1246.37,0.00011232,2]
[422004198,1778445040000,-1935.64,0.00011232,2]
[422004219,1778445040000,-500.0,0.00011232,2]
[422004215,1778445040000,-500.0,0.00011232,2]
[422004222,1778445040000,-363.20571485,0.00011422,2]
[422004210,1778445040000,-1829.08,0.00011232,2]
[422004214,1778445040000,-2237.71,0.00011232,2]
[422004212,1778445040000,-1501.28,0.00011232,2]
[422004209,1778445040000,-4127.31,0.00011232,2]
[422004221,1778445040000,-151.0,0.00011357,2]
[422004231,1778445040000,-500.0,0.00011506,2]
[422004232,1778445040000,-500.0,0.00011506,2]
[422004230,1778445040000,-798.65,0.00011506,2]
[422004220,1778445040000,-151.0,0.00011357,2]
[422004229,1778445040000,-540.48,0.00011506,2]
[422004227,1778445040000,-500.0,0.00011506,2]
[422004225,1778445040000,-2185.42,0.00011506,2]
[422004223,1778445040000,-1722.01248599,0.00011451,2]
[422004195,1778445040000,-948.18,0.00011232,2]
[422004211,1778445040000,-500.0,0.00011232,2]
[422004205,1778445040000,-500.0,0.00011232,2]
[422004184,1778445040000,-500.0,0.00011232,2]
[422004203,1778445040000,-2173.79,0.00011232,2]
[422004226,1778445040000,-500.0,0.00011506,2]
[422004169,1778445040000,-500.0,0.00011232,2]
[422004178,1778445040000,-3984.66,0.00011232,2]
[422004170,1778445040000,-500.0,0.00011232,2]
[422004168,1778445040000,-156.84245257,0.00011232,2]
[422004171,1778445040000,-1457.85,0.00011232,2]
[422004172,1778445040000,-1029.22,0.00011232,2]
[422004176,1778445040000,-2936.56,0.00011232,2]
[422004177,1778445040000,-1419.9,0.00011232,2]
[422004173,1778445040000,-1323.5,0.00011232,2]
[422004174,1778445040000,-500.0,0.00011232,2]
[422004175,1778445040000,-531.47094139,0.00011232,2]
[422004179,1778445040000,-500.0,0.00011232,2]
[422004181,1778445040000,-672.67,0.00011232,2]
[422004183,1778445040000,-500.0,0.00011232,2]
[422004182,1778445040000,-3184.33,0.00011232,2]
[422004187,1778445040000,-22178.68,0.00011232,2]
[422004185,1778445040000,-1040.15,0.00011232,2]
[422004186,1778445040000,-500.0,0.00011232,2]
[422004188,1778445040000,-3042.14,0.00011232,2]
[422004180,1778445040000,-1328.58,0.00011232,2]
[422004190,1778445040000,-500.0,0.00011232,2]
[422004191,1778445040000,-3917.56,0.00011232,2]
[422004189,1778445040000,-500.0,0.00011232,2]
[422004192,1778445040000,-4774.8,0.00011232,2]
[422004202,1778445040000,-1499.44,0.00011232,2]
[422004193,1778445040000,-941.83,0.00011232,2]
[422004201,1778445040000,-4226.59,0.00011232,2]
[422004194,1778445040000,-807.59,0.00011232,2]
[422004204,1778445040000,-888.75,0.00011232,2]
[422004224,1778445040000,-3870.65356537,0.00011451,2]
[422004217,1778445040000,-500.0,0.00011232,2]
[422004234,1778445040000,-512.4,0.00011506,2]
[422004263,1778445040000,-500.0,0.00011506,2]
[422004264,1778445040000,-500.0,0.00011506,2]
[422004269,1778445040000,-1211.73,0.00011506,2]
[422004277,1778445040000,-500.0,0.00011506,2]
[422004270,1778445040000,-596.46,0.00011506,2]
[422004271,1778445040000,-500.0,0.00011506,2]
[422004280,1778445040000,-1323.5,0.00011506,2]
[422004278,1778445040000,-1457.85,0.00011506,2]
[422004279,1778445040000,-1029.22,0.00011506,2]
[422004272,1778445040000,-1576.49,0.00011506,2]
[422004268,1778445040000,-1063.36,0.00011506,2]
[422004275,1778445040000,-500.0,0.00011506,2]
[422004276,1778445040000,-500.0,0.00011506,2]
[422004273,1778445040000,-1386.81,0.00011506,2]
[422004281,1778445040000,-500.0,0.00011506,2]
[422004282,1778445040000,-1419.9,0.00011506,2]
[422004283,1778445040000,-2936.56,0.00011506,2]
[422004284,1778445040000,-3984.66,0.00011506,2]
[422004285,1778445040000,-500.0,0.00011506,2]
[422004288,1778445040000,-3184.33,0.00011506,2]
[422004293,1778445040000,-22178.68,0.00011506,2]